[Event "Nordic Chess-ch 2019"]
[Site "Sarpsborg"]
[Date "2019.06.25"]
[Round "7.35"]
[White "Kirppo, Ronny"]
[Black "Andersen, Harry"]
[Result "0-1"]
[ECO "D91"]
[WhiteElo "1910"]
[BlackElo "1905"]
[Annotator "NA"]
[PlyCount "104"]
[EventDate "2019.06.21"]
[EventType "swiss"]
[EventCountry "NOR"]
[SourceTitle "playchess.com"]
[Source "ChessBase"]
[SourceQuality "1"]
[TimeControl "40/5400+30:1800+30"]

1. d4 {[%emt 0:00:00]} Nf6 {[%emt 0:01:14]} 2. c4 {[%emt 0:00:00]} g6 {[%emt 0:00:08]} 3. Nc3 {[%emt 0:00:00]} d5 {[%emt 0:00:18]} 4. Nf3 {[%emt 0:00:04]} Bg7 {[%emt 0:00:17]} 5. Bg5 {[%emt 0:00:09]} c6 {[%emt 0:02:25]} 6. e3 {[%emt 0:04:46]} O-O {[%emt 0:04:21]} 7. Bd3 {[%emt 0:00:41]} c5 {[%emt 0:01:36]} 8. Bxf6 {[%emt 0:03:08]} Bxf6 {[%emt 0:00:15]} 9. Nxd5 {[%emt 0:00:11]} Bg7 {[%emt 0:00:36]} 10. O-O {[%emt 0:03:33]} e6 {[%emt 0:01:00]} 11. Nc3 {[%emt 0:06:58]} cxd4 {[%emt 0:01:40]} 12. exd4 {[%emt 0:16:26]} Bxd4 {[%emt 0:21:41]} 13. Nxd4 {[%emt 0:00:31]} Qxd4 {[%emt 0:00:20]} 14. Be2 {[%emt 0:07:21]} Nc6 {[%emt 0:00:51]} 15. Qc1 {[%emt 0:06:09]} Qh4 {[%emt 0:08:16]} 16. Rd1 {[%emt 0:09:20]} Ne5 {[%emt 0:02:46]} 17. b3 {[%emt 0:06:57]} b6 {[%emt 0:01:39]} 18. Qe3 {[%emt 0:01:51]} Ng4 {[%emt 0:10:46]} 19. Qg3 {[%emt 0:00:49]} Qxg3 {[%emt 0:00:30]} 20. hxg3 {[%emt 0:00:01]} Nf6 {[%emt 0:04:36]} 21. Bf3 {[%emt 0:01:03]} Rb8 {[%emt 0:00:12]} 22. Rd2 {[%emt 0:05:12]} Bb7 {[%emt 0:01:28]} 23. Rad1 {[%emt 0:00:15]} Bxf3 {[%emt 0:01:06]} 24. gxf3 {[%emt 0:00:02]} Rfc8 {[%emt 0:00:18]} 25. Ne4 {[%emt 0:03:52]} Nxe4 {[%emt 0:00:37]} 26. fxe4 {[%emt 0:00:01]} Rc7 {[%emt 0:00:35]} 27. Kg2 {[%emt 0:02:05]} Kf8 {[%emt 0:02:39]} 28. Kf3 {[%emt 0:01:18]} h5 {[%emt 0:00:53]} 29. Ke3 {[%emt 0:00:07]} Ke7 {[%emt 0:00:12]} 30. e5 {[%emt 0:02:23]} b5 {[%emt 0:03:15]} 31. cxb5 {[%emt 0:01:48]} Rxb5 {[%emt 0:00:24]} 32. f4 {[%emt 0:00:18]} Rc3+ {[%emt 0:02:21]} 33. Rd3 {[%emt 0:02:10]} Rbc5 {[%emt 0:05:46]} 34. Rxc3 {[%emt 0:00:30]} Rxc3+ {[%emt 0:00:14]} 35. Rd3 {[%emt 0:00:01]} Rxd3+ {[%emt 0:00:30]} 36. Kxd3 {[%emt 0:00:01]} f6 {[%emt 0:00:11]} 37. b4 {[%emt 0:07:56]} fxe5 {[%emt 0:00:12]} 38. fxe5 {[%emt 0:00:01]} g5 {[%emt 0:00:18]} 39. a4 {[%emt 0:01:35]} Kd7 {[%emt 0:00:23]} 40. b5 {[%emt 0:04:57]} a6 {[%emt 0:01:14]} 41. bxa6 {[%emt 0:06:57]} Kc7 {[%emt 0:02:08]} 42. a5 {[%emt 0:00:04]} Kb8 {[%emt 0:00:10]} 43. Kd4 {[%emt 0:00:01]} Ka7 {[%emt 0:03:49]} 44. Kc5 {[%emt 0:00:13]} h4 {[%emt 0:00:06]} 45. gxh4 {[%emt 0:00:05]} gxh4 {[%emt 0:00:52]} 46. Kd6 {[%emt 0:00:01]} h3 {[%emt 0:00:09]} 47. Kxe6 {[%emt 0:00:03]} h2 {[%emt 0:00:08]} 48. Kf7 {[%emt 0:00:16]} h1=Q {[%emt 0:00:23]} 49. e6 {[%emt 0:00:02]} Qf3+ {[%emt 0:01:16]} 50. Kg7 {[%emt 0:00:06]} Qe4 {[%emt 0:00:33]} 51. Kf6 {[%emt 0:00:21]} Qf4+ {[%emt 0:00:23]} 52. Kg6 {[%emt 0:00:42]} Qf8 {[%emt 0:00:21]} 0-1

[Event "Nordic Chess-ch 2019"]
[Site "Sarpsborg"]
[Date "2019.06.25"]
[Round "7.36"]
[White "Rukovci, Shemsi"]
[Black "Larsen, Bjorn"]
[Result "1-0"]
[ECO "C77"]
[WhiteElo "1907"]
[BlackElo "1680"]
[Annotator "NA"]
[PlyCount "83"]
[EventDate "2019.06.21"]
[EventType "swiss"]
[EventCountry "NOR"]
[SourceTitle "playchess.com"]
[Source "ChessBase"]
[SourceQuality "1"]
[TimeControl "40/5400+30:1800+30"]

1. e4 {[%emt 0:00:12]} e5 {[%emt 0:00:00]} 2. Nf3 {[%emt 0:00:04]} Nc6 {[%emt 0:00:00]} 3. Bb5 {[%emt 0:00:10]} a6 {[%emt 0:00:41]} 4. Ba4 {[%emt 0:00:16]} Nf6 {[%emt 0:00:30]} 5. d3 {[%emt 0:00:31]} b5 {[%emt 0:01:09]} 6. Bb3 {[%emt 0:00:04]} h6 {[%emt 0:00:32]} 7. c3 {[%emt 0:00:19]} d6 {[%emt 0:04:02]} 8. O-O {[%emt 0:01:00]} Bg4 {[%emt 0:10:52]} 9. a4 {[%emt 0:04:03]} Ne7 {[%emt 0:06:26]} 10. h3 {[%emt 0:03:31]} Bd7 {[%emt 0:08:39]} 11. Nbd2 {[%emt 0:12:33]} g5 {[%emt 0:04:25]} 12. Nh2 {[%emt 0:05:53]} Ng6 {[%emt 0:01:14]} 13. Ndf3 {[%emt 0:11:26]} Qc8 {[%emt 0:05:41]} 14. g4 {[%emt 0:05:54]} Nf4 {[%emt 0:02:03]} 15. Bxf4 {[%emt 0:01:12]} gxf4 {[%emt 0:06:12]} 16. Nh4 {[%emt 0:01:01]} Rg8 {[%emt 0:05:54]} 17. Kh1 {[%emt 0:07:25]} h5 {[%emt 0:04:55]} 18. Nf5 {[%emt 0:02:32]} hxg4 {[%emt 0:01:30]} 19. hxg4 {[%emt 0:01:39]} Nh7 {[%emt 0:04:52]} 20. Rg1 {[%emt 0:05:46]} Ng5 {[%emt 0:00:58]} 21. Rg2 {[%emt 0:00:30]} Qd8 {[%emt 0:02:39]} 22. f3 {[%emt 0:04:27]} Qf6 {[%emt 0:02:12]} 23. axb5 {[%emt 0:01:55]} Bxb5 {[%emt 0:00:42]} 24. Bd5 {[%emt 0:03:06]} Ra7 {[%emt 0:06:00]} 25. c4 {[%emt 0:03:42]} Bd7 {[%emt 0:03:09]} 26. Qb3 {[%emt 0:00:09]} Qd8 {[%emt 0:00:48]} 27. c5 {[%emt 0:00:55]} Rh8 {[%emt 0:06:02]} 28. c6 {[%emt 0:02:10]} Be6 {[%emt 0:00:48]} 29. Kg1 {[%emt 0:04:04]} Bxd5 {[%emt 0:01:46]} 30. exd5 {[%emt 0:01:18]} Rh3 {[%emt 0:02:52]} 31. Rf2 {[%emt 0:04:12]} f6 {[%emt 0:00:20]} 32. Qc4 {[%emt 0:01:44]} a5 {[%emt 0:03:49]} 33. b4 {[%emt 0:01:01]} a4 {[%emt 0:01:34]} 34. b5 {[%emt 0:00:27]} Qb8 {[%emt 0:01:24]} 35. Rxa4 {[%emt 0:00:59]} Rxa4 {[%emt 0:02:50]} 36. Qxa4 {[%emt 0:00:19]} Kf7 {[%emt 0:00:00]} 37. Qa6 {[%emt 0:00:35]} Be7 {[%emt 0:00:00]} 38. Qb7 {[%emt 0:00:12]} Qxb7 {[%emt 0:00:14]} 39. cxb7 {[%emt 0:00:01]} Rh8 {[%emt 0:00:10]} 40. Rc2 {[%emt 0:00:01]} Nh3+ {[%emt 0:01:04]} 41. Kg2 {[%emt 0:30:31]} Ng5 {[%emt 0:05:03]} 42. Rxc7 {[%emt 0:00:00]} 1-0

[Event "Nordic Chess-ch 2019"]
[Site "Sarpsborg"]
[Date "2019.06.25"]
[Round "7.37"]
[White "Andersen, Dag"]
[Black "Eriksen, Oddvar"]
[Result "1/2-1/2"]
[ECO "D15"]
[WhiteElo "1817"]
[BlackElo "1520"]
[Annotator "NA"]
[PlyCount "133"]
[EventDate "2019.06.21"]
[EventType "swiss"]
[EventCountry "NOR"]
[SourceTitle "playchess.com"]
[Source "ChessBase"]
[SourceQuality "1"]
[TimeControl "40/5400+30:1800+30"]

1. d4 {[%emt 0:00:00]} Nf6 {[%emt 0:00:00]} 2. Nf3 {[%emt 0:00:08]} c6 {[%emt 0:00:35]} 3. c4 {[%emt 0:00:08]} d5 {[%emt 0:00:09]} 4. Nc3 {[%emt 0:00:37]} Nbd7 {[%emt 0:01:08]} 5. e3 {[%emt 0:00:10]} e5 {[%emt 0:00:48]} 6. dxe5 {[%emt 0:00:44]} Ng4 {[%emt 0:01:05]} 7. cxd5 {[%emt 0:00:51]} Ngxe5 {[%emt 0:00:51]} 8. dxc6 {[%emt 0:00:02]} bxc6 {[%emt 0:00:06]} 9. Be2 {[%emt 0:01:00]} Qc7 {[%emt 0:01:50]} 10. O-O {[%emt 0:01:14]} Nxf3+ {[%emt 0:00:59]} 11. Bxf3 {[%emt 0:00:25]} Ne5 {[%emt 0:00:14]} 12. Be2 {[%emt 0:00:57]} Bd6 {[%emt 0:00:20]} 13. Ne4 {[%emt 0:00:44]} Be7 {[%emt 0:00:35]} 14. Qa4 {[%emt 0:01:34]} O-O {[%emt 0:00:12]} 15. Bd2 {[%emt 0:00:44]} Rb8 {[%emt 0:02:06]} 16. Bc3 {[%emt 0:00:53]} f5 {[%emt 0:01:55]} 17. Nd2 {[%emt 0:01:23]} Bf6 {[%emt 0:00:56]} 18. Nc4 {[%emt 0:02:04]} Nxc4 {[%emt 1:25:11]} 19. Qxc4+ {[%emt 0:00:19]} Kh8 {[%emt 0:00:00]} 20. Bf3 {[%emt 0:01:02]} Bb7 {[%emt 0:00:00]} 21. Rfd1 {[%emt 0:00:34]} f4 {[%emt 0:00:00]} 22. exf4 {[%emt 0:03:09]} Bxc3 {[%emt 0:00:00]} 23. Qxc3 {[%emt 0:00:14]} Rxf4 {[%emt 0:00:00]} 24. Rd2 {[%emt 0:02:34]} c5 {[%emt 0:00:00]} 25. Bxb7 {[%emt 1:21:00]} Rxb7 {[%emt 0:00:00]} 26. Rad1 {[%emt 0:00:00]} Rf8 {[%emt 0:00:00]} 27. b3 {[%emt 0:00:00]} Qc8 {[%emt 0:00:00]} 28. Rd5 {[%emt 0:00:00]} Rc7 {[%emt 0:00:00]} 29. h4 {[%emt 0:00:00]} c4 {[%emt 0:00:00]} 30. b4 {[%emt 0:00:00]} Rcf7 {[%emt 0:00:00]} 31. f3 {[%emt 0:00:00]} Qc7 {[%emt 0:00:00]} 32. Rg5 {[%emt 0:00:00]} h6 {[%emt 0:00:00]} 33. Rg6 {[%emt 0:00:00]} Kh7 {[%emt 0:00:00]} 34. Rg4 {[%emt 0:00:00]} Rf4 {[%emt 0:00:00]} 35. Rxf4 {[%emt 0:00:00]} Rxf4 {[%emt 0:00:00]} 36. h5 {[%emt 0:00:00]} Rh4 {[%emt 0:00:00]} 37. Qc2+ {[%emt 0:00:00]} Kh8 {[%emt 0:00:00]} 38. Qg6 {[%emt 0:00:00]} c3 {[%emt 0:00:00]} 39. Re1 {[%emt 0:00:00]} Qb6+ {[%emt 0:00:00]} 40. Qxb6 {[%emt 0:00:00]} axb6 {[%emt 0:00:00]} 41. g4 {[%emt 0:00:00]} g6 {[%emt 0:00:00]} 42. hxg6 {[%emt 0:00:00]} h5 {[%emt 0:00:00]} 43. gxh5 {[%emt 0:00:00]} Rxh5 {[%emt 0:00:00]} 44. Rc1 {[%emt 0:00:00]} Rh4 {[%emt 0:00:00]} 45. a3 {[%emt 0:00:00]} Rc4 {[%emt 0:00:00]} 46. Rc2 {[%emt 0:00:00]} Kg7 {[%emt 0:00:00]} 47. Kf2 {[%emt 0:00:00]} Kxg6 {[%emt 0:00:00]} 48. Ke3 {[%emt 0:00:00]} Kf5 {[%emt 0:00:00]} 49. Kd3 {[%emt 0:00:00]} Rf4 {[%emt 0:00:00]} 50. Rf2 {[%emt 0:00:00]} c2 {[%emt 0:00:00]} 51. Kxc2 {[%emt 0:00:00]} Ke5 {[%emt 0:00:00]} 52. Kc3 {[%emt 0:00:00]} Kd6 {[%emt 0:00:00]} 53. a4 {[%emt 0:00:00]} Kc6 {[%emt 0:00:00]} 54. Kb3 {[%emt 0:00:00]} Kb7 {[%emt 0:00:00]} 55. b5 {[%emt 0:00:00]} Kb8 {[%emt 0:00:00]} 56. Re2 {[%emt 0:00:00]} Rxf3+ {[%emt 0:00:00]} 57. Kc4 {[%emt 0:00:00]} Rf4+ {[%emt 0:00:00]} 58. Kd5 {[%emt 0:00:00]} Rxa4 {[%emt 0:00:00]} 59. Kc6 {[%emt 0:00:02]} Rh4 {[%emt 0:00:00]} 60. Re8+ {[%emt 0:02:10]} Ka7 {[%emt 0:00:00]} 61. Re7+ {[%emt 0:01:29]} Kb8 {[%emt 0:00:00]} 62. Kxb6 {[%emt 0:00:17]} Rh6+ {[%emt 0:00:00]} 63. Ka5 {[%emt 0:02:33]} Rf6 {[%emt 0:00:00]} 64. b6 {[%emt 0:00:44]} Rf1 {[%emt 0:00:00]} 65. Ka6 {[%emt 0:01:19]} Ra1+ {[%emt 0:00:00]} 66. Kb5 {[%emt 0:00:01]} Rb1+ {[%emt 0:00:00]} 67. Kc6 {[%emt 0:00:22]} 1/2-1/2

[Event "Nordic Chess-ch 2019"]
[Site "Sarpsborg"]
[Date "2019.06.25"]
[Round "7.38"]
[White "Stabbetorp, Hans"]
[Black "Thorvlaksson, Baldvin"]
[Result "1/2-1/2"]
[ECO "D02"]
[WhiteElo "1767"]
[BlackElo "1523"]
[Annotator "NA"]
[PlyCount "52"]
[EventDate "2019.06.21"]
[EventType "swiss"]
[EventCountry "NOR"]
[SourceTitle "playchess.com"]
[Source "ChessBase"]
[SourceQuality "1"]
[TimeControl "40/5400+30:1800+30"]

1. d4 {[%emt 0:00:00]} Nf6 {[%emt 0:00:00]} 2. Nf3 {[%emt 0:00:00]} e6 {[%emt 0:00:00]} 3. Bf4 {[%emt 0:00:00]} d5 {[%emt 0:00:00]} 4. Nbd2 {[%emt 0:00:00]} Bd6 {[%emt 0:01:56]} 5. Bxd6 {[%emt 0:00:06]} cxd6 {[%emt 0:00:06]} 6. e3 {[%emt 0:00:11]} O-O {[%emt 0:00:16]} 7. Be2 {[%emt 0:00:38]} Re8 {[%emt 0:00:41]} 8. O-O {[%emt 0:00:38]} b6 {[%emt 0:02:16]} 9. Rc1 {[%emt 0:02:03]} Bb7 {[%emt 0:00:20]} 10. Bb5 {[%emt 0:00:45]} Re7 {[%emt 0:02:09]} 11. c3 {[%emt 0:01:25]} Na6 {[%emt 0:01:43]} 12. Qa4 {[%emt 0:03:17]} Nc7 {[%emt 0:01:04]} 13. Be2 {[%emt 0:00:10]} Qd7 {[%emt 0:01:38]} 14. Qb3 {[%emt 0:02:29]} Ne4 {[%emt 0:07:30]} 15. Nxe4 {[%emt 0:05:58]} dxe4 {[%emt 0:00:35]} 16. Nd2 {[%emt 0:00:03]} f5 {[%emt 0:03:20]} 17. c4 {[%emt 0:01:07]} Kh8 {[%emt 0:06:53]} 18. Rfd1 {[%emt 0:02:00]} Qe8 {[%emt 0:06:02]} 19. c5 {[%emt 0:01:25]} dxc5 {[%emt 0:00:43]} 20. dxc5 {[%emt 0:00:06]} Nd5 {[%emt 0:00:42]} 21. Nc4 {[%emt 0:02:44]} bxc5 {[%emt 0:01:05]} 22. Nd6 {[%emt 0:01:46]} Qd7 {[%emt 0:00:32]} 23. Nxb7 {[%emt 0:00:22]} Qxb7 {[%emt 0:00:13]} 24. Qa3 {[%emt 0:03:59]} Rc7 {[%emt 0:02:15]} 25. Rd2 {[%emt 0:00:43]} Qb4 {[%emt 0:02:05]} 26. Qxb4 {[%emt 0:05:00]} cxb4 {[%emt 0:02:39]} 1/2-1/2

[Event "Nordic Chess-ch 2019"]
[Site "Sarpsborg"]
[Date "2019.06.25"]
[Round "7.39"]
[White "Andersen, Odd"]
[Black "Bergquist, Rune"]
[Result "0-1"]
[ECO "B19"]
[WhiteElo "1751"]
[BlackElo "1609"]
[Annotator "NA"]
[PlyCount "94"]
[EventDate "2019.06.21"]
[EventType "swiss"]
[EventCountry "NOR"]
[SourceTitle "playchess.com"]
[Source "ChessBase"]
[SourceQuality "1"]
[TimeControl "40/5400+30:1800+30"]

1. e4 {[%emt 0:00:00]} c6 {[%emt 0:00:00]} 2. d4 {[%emt 0:00:00]} d5 {[%emt 0:00:00]} 3. Nc3 {[%emt 0:00:00]} dxe4 {[%emt 1:31:30]} 4. Nxe4 {[%emt 1:32:00]} Bf5 {[%emt 0:00:00]} 5. Ng3 {[%emt 0:00:00]} Bg6 {[%emt 0:00:00]} 6. h4 {[%emt 0:00:00]} h6 {[%emt 0:00:00]} 7. Nf3 {[%emt 0:00:00]} Nd7 {[%emt 0:00:00]} 8. h5 {[%emt 0:00:00]} Bh7 {[%emt 0:00:00]} 9. Bd3 {[%emt 0:00:00]} Bxd3 {[%emt 0:00:00]} 10. Qxd3 {[%emt 0:00:00]} e6 {[%emt 0:00:00]} 11. Bf4 {[%emt 0:00:00]} Qa5+ {[%emt 0:00:00]} 12. c3 {[%emt 0:00:00]} Ngf6 {[%emt 0:00:00]} 13. O-O {[%emt 0:00:00]} Be7 {[%emt 0:00:00]} 14. b4 {[%emt 0:00:00]} Qd8 {[%emt 0:00:00]} 15. a3 {[%emt 0:00:00]} O-O {[%emt 0:00:00]} 16. c4 {[%emt 0:00:00]} a5 {[%emt 0:00:00]} 17. Qb3 {[%emt 0:00:00]} b5 {[%emt 0:00:00]} 18. c5 {[%emt 0:00:00]} Nd5 {[%emt 0:00:00]} 19. Bd2 {[%emt 0:00:00]} axb4 {[%emt 0:00:00]} 20. axb4 {[%emt 0:00:00]} Qc7 {[%emt 0:00:00]} 21. Rfe1 {[%emt 0:00:00]} Bf6 {[%emt 0:00:00]} 22. Ne4 {[%emt 0:00:00]} Be7 {[%emt 0:00:00]} 23. Ng3 {[%emt 0:00:00]} Bf6 {[%emt 0:00:00]} 24. Qd3 {[%emt 0:00:00]} Ra4 {[%emt 0:00:00]} 25. Rab1 {[%emt 0:00:00]} Rfa8 {[%emt 0:00:00]} 26. Qe4 {[%emt 0:00:00]} Be7 {[%emt 0:00:00]} 27. Ne5 {[%emt 0:00:00]} N7f6 {[%emt 0:00:00]} 28. Qd3 {[%emt 0:00:00]} Ra3 {[%emt 0:00:00]} 29. Rb3 {[%emt 0:00:00]} Ra2 {[%emt 0:00:00]} 30. Re2 {[%emt 0:00:00]} Qa7 {[%emt 0:00:00]} 31. Nxc6 {[%emt 0:00:00]} Ra1+ {[%emt 0:00:00]} 32. Re1 {[%emt 0:00:00]} Rxe1+ {[%emt 0:00:00]} 33. Bxe1 {[%emt 0:00:00]} Qa1 {[%emt 0:00:00]} 34. Rb1 {[%emt 0:00:00]} Qa4 {[%emt 0:00:00]} 35. Bd2 {[%emt 0:00:00]} Qa2 {[%emt 0:00:00]} 36. Ne5 {[%emt 0:00:00]} Ra3 {[%emt 0:00:08]} 37. Qe2 {[%emt 0:00:00]} Qxb1+ {[%emt 0:00:27]} 38. Kh2 {[%emt 0:00:00]} Ra2 {[%emt 0:06:15]} 39. Qxb5 {[%emt 0:00:00]} Rxd2 {[%emt 0:00:46]} 40. c6 {[%emt 0:00:00]} Qc2 {[%emt 0:04:49]} 41. Qb8+ {[%emt 0:15:58]} Kh7 {[%emt 0:30:43]} 42. Nxf7 {[%emt 0:01:21]} Ng8 {[%emt 0:01:01]} 43. Qe5 {[%emt 0:00:57]} Rxf2 {[%emt 0:02:29]} 44. Ne4 {[%emt 0:00:38]} Rxg2+ {[%emt 0:00:48]} 45. Kh3 {[%emt 0:01:24]} Rg1 {[%emt 0:00:00]} 46. Ng3 {[%emt 0:00:00]} Qg2+ {[%emt 0:00:00]} 47. Kg4 {[%emt 0:00:00]} Ngf6+ {[%emt 0:00:00]} 0-1

[Event "Nordic Chess-ch 2019"]
[Site "Sarpsborg"]
[Date "2019.06.25"]
[Round "7.40"]
[White "Lunde, Sigmund"]
[Black "Stubrud, Jan Magne"]
[Result "1-0"]
[ECO "C05"]
[WhiteElo "1834"]
[BlackElo "1681"]
[Annotator "NA"]
[PlyCount "109"]
[EventDate "2019.06.21"]
[EventType "swiss"]
[EventCountry "NOR"]
[SourceTitle "playchess.com"]
[Source "ChessBase"]
[SourceQuality "1"]
[TimeControl "40/5400+30:1800+30"]

1. e4 {[%emt 0:00:08]} e6 {[%emt 0:00:00]} 2. d4 {[%emt 0:02:52]} d5 {[%emt 0:00:00]} 3. Nd2 {[%emt 0:04:10]} c5 {[%emt 0:02:03]} 4. Ngf3 {[%emt 0:03:53]} Nf6 {[%emt 0:04:01]} 5. e5 {[%emt 0:04:19]} Nfd7 {[%emt 0:01:32]} 6. Nb3 {[%emt 0:05:13]} Nc6 {[%emt 0:05:26]} 7. Bf4 {[%emt 0:09:46]} Qb6 {[%emt 0:01:57]} 8. dxc5 {[%emt 0:09:16]} Bxc5 {[%emt 0:02:43]} 9. Nxc5 {[%emt 0:06:38]} Nxc5 {[%emt 0:01:20]} 10. Qc1 {[%emt 0:48:45]} O-O {[%emt 0:11:51]} 11. c3 {[%emt 0:00:00]} Ne4 {[%emt 0:06:49]} 12. Bg3 {[%emt 0:00:00]} f6 {[%emt 0:00:59]} 13. Bd3 {[%emt 0:00:00]} Bd7 {[%emt 0:14:20]} 14. Qc2 {[%emt 0:00:00]} f5 {[%emt 0:04:30]} 15. Bf4 {[%emt 0:00:00]} Rac8 {[%emt 0:01:04]} 16. a3 {[%emt 0:00:00]} Na5 {[%emt 0:04:56]} 17. O-O {[%emt 0:00:00]} Qd8 {[%emt 0:05:29]} 18. Be3 {[%emt 0:00:00]} b6 {[%emt 0:04:30]} 19. Rad1 {[%emt 0:00:15]} Qe8 {[%emt 0:01:07]} 20. Rde1 {[%emt 0:00:36]} Qh5 {[%emt 0:03:56]} 21. Bxe4 {[%emt 0:00:43]} fxe4 {[%emt 0:01:44]} 22. Nd4 {[%emt 0:00:10]} Qxe5 {[%emt 0:01:33]} 23. f4 {[%emt 0:00:39]} exf3 {[%emt 0:02:38]} 24. Nxf3 {[%emt 0:00:16]} Qf5 {[%emt 0:03:05]} 25. Qe2 {[%emt 0:00:32]} Nc4 {[%emt 0:02:07]} 26. Bc1 {[%emt 0:00:30]} Qh5 {[%emt 0:01:23]} 27. Qd3 {[%emt 0:01:19]} Nd6 {[%emt 0:02:10]} 28. Re5 {[%emt 0:01:11]} Qf7 {[%emt 0:01:51]} 29. Qd4 {[%emt 0:01:11]} Rc4 {[%emt 0:00:43]} 30. Qd2 {[%emt 0:01:06]} Rf4 {[%emt 0:01:51]} 31. Qxf4 {[%emt 0:00:15]} Qxf4 {[%emt 0:00:32]} 32. Bxf4 {[%emt 0:00:05]} Rxf4 {[%emt 0:00:17]} 33. Nd4 {[%emt 0:00:06]} Rxf1+ {[%emt 0:01:17]} 34. Kxf1 {[%emt 0:00:11]} Nc4 {[%emt 0:00:07]} 35. Re2 {[%emt 0:00:15]} Kf7 {[%emt 0:00:36]} 36. Ke1 {[%emt 0:00:50]} e5 {[%emt 0:01:50]} 37. Rf2+ {[%emt 0:01:15]} Kg6 {[%emt 0:02:13]} 38. Nf3 {[%emt 0:00:20]} Kf5 {[%emt 0:01:33]} 39. Nd2+ {[%emt 0:00:26]} Ke6 {[%emt 0:00:20]} 40. Nxc4 {[%emt 0:00:13]} dxc4 {[%emt 0:00:08]} 41. Kd2 {[%emt 0:30:33]} Bc6 {[%emt 0:30:48]} 42. g3 {[%emt 0:00:59]} b5 {[%emt 0:03:00]} 43. Rf8 {[%emt 0:00:59]} a6 {[%emt 0:00:00]} 44. Rc8 {[%emt 0:00:00]} Bd5 {[%emt 0:00:00]} 45. Rc7 {[%emt 0:00:00]} g6 {[%emt 0:00:00]} 46. Ra7 {[%emt 0:00:00]} Kf5 {[%emt 0:00:00]} 47. Rxa6 {[%emt 0:00:00]} Kg4 {[%emt 0:00:00]} 48. Rb6 {[%emt 0:00:00]} e4 {[%emt 0:00:00]} 49. Rxb5 {[%emt 0:00:00]} Be6 {[%emt 0:00:00]} 50. Re5 {[%emt 0:00:00]} Bf5 {[%emt 0:00:00]} 51. a4 {[%emt 0:00:00]} Kh3 {[%emt 0:00:00]} 52. a5 {[%emt 0:00:00]} Bc8 {[%emt 0:00:00]} 53. Rxe4 {[%emt 0:00:00]} Ba6 {[%emt 0:00:00]} 54. Rh4+ {[%emt 0:00:00]} Kg2 {[%emt 0:00:00]} 55. Rxh7 {[%emt 0:00:00]} 1-0

[Event "Nordic Chess-ch 2019"]
[Site "Sarpsborg"]
[Date "2019.06.25"]
[Round "7.41"]
[White "Sather, Lars"]
[Black "Heikkila, Raine"]
[Result "1/2-1/2"]
[ECO "D07"]
[WhiteElo "1730"]
[BlackElo "1663"]
[Annotator "NA"]
[PlyCount "118"]
[EventDate "2019.06.21"]
[EventType "swiss"]
[EventCountry "NOR"]
[SourceTitle "playchess.com"]
[Source "ChessBase"]
[SourceQuality "1"]
[TimeControl "40/5400+30:1800+30"]

1. d4 {[%emt 0:00:00]} d5 {[%emt 0:00:00]} 2. c4 {[%emt 0:00:00]} Nf6 {[%emt 0:00:00]} 3. Nc3 {[%emt 0:00:00]} Nc6 {[%emt 0:00:44]} 4. Nf3 {[%emt 0:00:58]} Bg4 {[%emt 0:00:12]} 5. e3 {[%emt 0:00:38]} a6 {[%emt 0:00:20]} 6. h3 {[%emt 0:00:10]} Bh5 {[%emt 0:00:14]} 7. c5 {[%emt 0:02:04]} h6 {[%emt 0:00:13]} 8. Be2 {[%emt 0:00:10]} e6 {[%emt 0:00:26]} 9. O-O {[%emt 0:01:08]} Be7 {[%emt 0:00:07]} 10. b3 {[%emt 0:02:35]} O-O {[%emt 0:00:10]} 11. Bb2 {[%emt 0:00:37]} Bg6 {[%emt 0:00:23]} 12. Nd2 {[%emt 0:00:44]} Qe8 {[%emt 0:00:30]} 13. f3 {[%emt 0:00:33]} Nb4 {[%emt 0:00:23]} 14. e4 {[%emt 0:02:27]} Nh5 {[%emt 0:00:58]} 15. a3 {[%emt 0:00:47]} Nc6 {[%emt 0:00:25]} 16. Ndb1 {[%emt 0:02:51]} Ng3 {[%emt 0:00:21]} 17. Re1 {[%emt 0:01:24]} Nxe2+ {[%emt 1:33:04]} 18. Rxe2 {[%emt 1:21:54]} Qd7 {[%emt 0:00:00]} 19. exd5 {[%emt 0:00:00]} exd5 {[%emt 0:00:00]} 20. Na2 {[%emt 0:00:00]} Bf6 {[%emt 0:00:00]} 21. Nb4 {[%emt 0:00:00]} Rae8 {[%emt 0:00:00]} 22. Nxc6 {[%emt 0:00:00]} Rxe2 {[%emt 0:00:00]} 23. Qxe2 {[%emt 0:00:00]} Qxc6 {[%emt 0:00:00]} 24. Qf2 {[%emt 0:00:00]} Re8 {[%emt 0:00:00]} 25. Nc3 {[%emt 0:00:00]} Qe6 {[%emt 0:00:00]} 26. b4 {[%emt 0:00:00]} c6 {[%emt 0:00:00]} 27. Rd1 {[%emt 0:00:00]} Qe7 {[%emt 0:00:00]} 28. a4 {[%emt 0:00:00]} Qe3 {[%emt 0:00:00]} 29. Qxe3 {[%emt 0:00:00]} Rxe3 {[%emt 0:00:00]} 30. Kf2 {[%emt 0:00:00]} Rd3 {[%emt 0:00:00]} 31. Rxd3 {[%emt 0:00:00]} Bxd3 {[%emt 0:00:00]} 32. Ke3 {[%emt 0:00:00]} Bf1 {[%emt 0:00:00]} 33. Kf2 {[%emt 0:00:00]} Bc4 {[%emt 0:00:00]} 34. Nb1 {[%emt 0:00:00]} Bb3 {[%emt 0:00:00]} 35. a5 {[%emt 0:00:00]} Bc2 {[%emt 0:00:00]} 36. Nd2 {[%emt 0:00:00]} Bg5 {[%emt 0:00:00]} 37. Nf1 {[%emt 0:00:00]} h5 {[%emt 0:00:00]} 38. Bc3 {[%emt 0:00:00]} Bd3 {[%emt 0:00:00]} 39. Nh2 {[%emt 0:00:00]} Bd8 {[%emt 0:00:00]} 40. Bd2 {[%emt 0:00:00]} Bc7 {[%emt 0:00:00]} 41. g3 {[%emt 0:00:00]} Bf5 {[%emt 0:00:00]} 42. Kg2 {[%emt 0:00:00]} f6 {[%emt 0:00:00]} 43. Nf1 {[%emt 0:00:00]} Bd3 {[%emt 0:00:00]} 44. Ne3 {[%emt 0:00:00]} Kf7 {[%emt 0:00:00]} 45. g4 {[%emt 0:00:45]} hxg4 {[%emt 0:00:00]} 46. hxg4 {[%emt 0:00:56]} Bf4 {[%emt 0:00:00]} 47. Kf2 {[%emt 0:00:26]} g5 {[%emt 0:00:00]} 48. Be1 {[%emt 0:00:54]} Ke6 {[%emt 0:00:00]} 49. Ng2 {[%emt 0:00:31]} Bc7 {[%emt 0:00:00]} 50. Bd2 {[%emt 0:00:29]} Bc2 {[%emt 0:00:00]} 51. Ke2 {[%emt 0:04:39]} Bg6 {[%emt 0:00:00]} 52. f4 {[%emt 0:01:03]} gxf4 {[%emt 0:00:00]} 53. Nxf4+ {[%emt 0:04:10]} Bxf4 {[%emt 0:00:00]} 54. Bxf4 {[%emt 0:00:07]} Be4 {[%emt 0:00:00]} 55. Kf2 {[%emt 0:01:03]} Kf7 {[%emt 0:00:00]} 56. Kg3 {[%emt 0:00:37]} Kg6 {[%emt 0:00:00]} 57. Kh4 {[%emt 0:00:16]} Bd3 {[%emt 0:00:00]} 58. Be3 {[%emt 0:01:46]} Bc2 {[%emt 0:00:00]} 59. Kg3 {[%emt 0:00:28]} Bd3 {[%emt 0:00:00]} 1/2-1/2